Cogmind - Beta 16 @@@ ROGUE MODE // 2025.10.26 @ 17:04:08 Player: unq Result: Destroyed by DI-WPT(R) with Subdweller Laser Performance ------------- Evolutions (0) 0 Regions Visited (2) 400 Robots Destroyed (36) 180 Value Destroyed (796) 796 Prototype IDs (2) 40 Alien Tech Used (0) 0 Bonus (0) 0 TOTAL SCORE: 1416 Bonus ------- None Cogmind --------- Core Integrity 0/250 Matter 272/300 Energy 176/200 System Corruption 0% Temperature Cool (36) Movement Treading (320) Ox2 Location -10/Subcaves Parts ------- > --- POWER (1) -------- Subdweller Power Source > --- PROPULSION (2) --- Light Treads Light Treads > --- UTILITY (2) ------ High-capacity Storage Unit Weapon Shielding > --- WEAPON (2) ------- Beam Cannon Beam Cannon > --- INVENTORY (20) --- Subdweller Power Source Subdweller Power Source Subdweller Power Source Light Treads Subdweller Monowheel Subdweller Monowheel Flightbrick Disposable Heat Sink Large Storage Unit Subdweller Optics Subdweller Optics Seismic Detector Subdweller Laser Beam Cannon Subdweller Beam Cannon Assault Rifle Mining Laser Peak State ------------ > --- POWER ------------ Subdweller Power Source > --- PROPULSION ------- Light Treads Subdweller Monowheel > --- UTILITY ---------- High-capacity Storage Unit Seismic Detector > --- WEAPON ----------- Beam Cannon Beam Cannon > --- INVENTORY -------- Subdweller Power Source Subdweller Power Source Subdweller Power Source Light Treads Light Treads Subdweller Monowheel Flightbrick Disposable Heat Sink Large Storage Unit Subdweller Optics Subdweller Optics Weapon Shielding Subdweller Laser Beam Cannon Assault Rifle Light Assault Rifle Mining Laser [Rating: 15] Favorites ----------- Power Ion Engine Engine Ion Engine Propulsion Light Treads Treads Light Treads Wheel Subdweller Monowheel Utility Seismic Detector Device Seismic Detector Storage Large Storage Unit Processor Targeting Computer Protection Weapon Shielding Weapon Beam Cannon Energy Gun Medium Laser Energy Cannon Beam Cannon Ballistic Gun Light Assault Rifle Special Weapon Mining Laser Slashing Weapon Mining Claw Build | -11 -10 -10 ------- Run | Yrd Mat Sub Slots Evolved . | . . . Power . | . . . Propulsion . | . . . Utility . | . . . Weapon . | . . . Parts Attached 29 | 8 12 9 Power 4 | 1 2 1 Engine 4 | 1 2 1 Core . | . . . Reactor . | . . . Propulsion 6 | 2 . 4 Treads 4 | 2 . 2 Leg . | . . . Wheel 2 | . . 2 Hover . | . . . Flight . | . . . Utility 10 | 2 5 3 Device 4 | 1 2 1 Storage 4 | 1 2 1 Processor 1 | . 1 . Hackware . | . . . Protection 1 | . . 1 Artifact . | . . . Weapon 9 | 3 5 1 Energy Gun 2 | 1 1 . Energy Cannon 3 | . 2 1 Ballistic Gun 2 | 2 . . Ballistic Cannon . | . . . Launcher . | . . . Special Weapon 1 | . 1 . Impact Weapon . | . . . Slashing Weapon 1 | . 1 . Piercing Weapon . | . . . Special Melee Weapon . | . . . Unidentified Prototypes . | . . . Parts Lost 3 | . 1 2 Power . | . . . Propulsion 2 | . . 2 Utility . | . . . Weapon 1 | . 1 . Highest Loss Streak 2 | . 1 2 To Critical Strikes . | . . . Average Backups 13 | 1 12 16 Power 1 | . 1 2 Propulsion 2 | . 1 3 Utility 5 | . 4 5 Weapon 4 | . 4 5 Tool/Special . | . . . Unused Backups 23 | . 7 16 Power 4 | . . 4 Propulsion 6 | . 3 3 Utility 8 | . 3 5 Weapon 5 | . 1 4 Tool/Special . | . . . Average Slot Usage (%) 99 | . 98 99 Engine 14 | . 14 14 Treads 23 | . 27 19 Wheel 3 | . . 8 Device 12 | . 12 12 Storage 14 | . 14 14 Energy Gun 4 | . 7 . Energy Cannon 20 | . 13 27 Ballistic Gun 2 | . 4 . Special Weapon 1 | . 1 . Peak Build Rating 15 | 7 8 15 Average Rating 9 | 5 7 12 On Entrance 5 | . 7 8 Avg Prop Armor Cover (%) 13 | . . 13 Naked Turns . | . . . Heaviest Build 52 | 14 32 52 Greatest Support 40 | 40 40 40 Greatest Overweight (x) 2 | 1 . 2 Average Overweight (x) . | . . 1 Largest Inventory Capacity 20 | 8 15 20 Average Capacity 16 | 7 14 19 Most Carried 20 | 4 15 20 Average Carried 14 | 1 12 18 Final Capacity 20 | 8 15 20 Final Carried 20 | 4 15 20 Class Distribution -------------------- 100% | Mutant Dominant Class ---------------- Mutant | -10/Materials Mutant | -10/Subcaves Resources | -11 -10 -10 ----------- Run | Yrd Mat Sub Matter Collected 796 | 301 323 172 Remotely . | . . . Salvage Created 1229 | 185 763 281 Parts 80 | 9 46 25 Haulers Intercepted 1 | . 1 . Recyclers Shooed 1 | . 1 . Parts Field Recycled . | . . . Retrieved Matter . | . . . Parts Self-Destructed 4 | . . 4 Prevented . | . . . Parts Restored . | . . . Kills | -11 -10 -10 ------- Run | Yrd Mat Sub Combat Hostiles Destroyed 22 | . 15 7 Guns 8 | . 8 . Cannons 14 | . 7 7 Classes Destroyed 9 | 2 6 1 Builder 1 | . 1 . Tunneler 5 | 5 . . Hauler 1 | . 1 . Recycler 3 | 1 2 . Operator 2 | . 2 . Watcher 2 | . 2 . Swarmer 6 | . 6 . Grunt 9 | . 9 . Subdweller 7 | . . 7 Best Kill Streak 3 | 3 3 3 Combat Bots Only 3 | . 3 3 Max Kills in Single Turn 2 | 1 2 1 Gunslinging . | . . . Exploded . | . . . Melee . | . . . Uniques/NPCs Destroyed . | . . . Combat | -11 -10 -10 -------- Run | Yrd Mat Sub Hostile Shots Fired 114 | . 56 58 Missed 33 | . 13 20 Hits 81 | . 43 38 Projectile 81 | . 43 38 Critical Strikes 3 | . 1 2 Damage Taken 1301 | . 484 817 Core 268 | . 90 178 Absorbed by Shields . | . . . Regen/Repaired (Parts) 150 | . 150 . Core Remaining (%) 100 | 100 . . Volleys Fired 114 | 21 63 30 Largest 2 | 2 2 2 Hottest 120 | 70 120 120 Shots Fired 209 | 42 109 58 Gun 110 | 42 68 . Cannon 96 | . 40 56 Launcher . | . . . Special 3 | . 1 2 Kinetic 43 | 21 22 . Thermal 142 | 21 63 58 Explosive . | . . . Electromagnetic 24 | . 24 . Robot Hit Streak 10 | 8 8 10 Robot Miss Streak 3 | 3 2 1 Penetration Max . | . . . Secondary Targets 1 | . 1 . Max Gunslinging Chain 1 | . 1 . Shots Hit Robots 144 | 30 70 44 Core Hits 55 | 8 34 13 Critical Kills . | . . . Critical Parts Destroyed 1 | . 1 . Critical Strikes 7 | 4 3 . Burn 6 | 4 2 . Destroy 1 | . 1 . Melee Attacks 4 | . 4 . Impact . | . . . Slashing 4 | . 4 . Piercing . | . . . Sneak Attacks 1 | . 1 . Combat Hostiles . | . . . Follow-up Attacks . | . . . Damage Inflicted 1872 | 292 1055 525 Guns 817 | 292 525 . Cannons 979 | . 454 525 Explosions . | . . . Melee 45 | . 45 . Ramming 31 | . 31 . Kinetic 231 | 117 114 . Thermal 1352 | 175 652 525 Explosive . | . . . Electromagnetic 213 | . 213 . Impact . | . . . Slashing 45 | . 45 . Piercing . | . . . Highest Corruption . | . . . Average Corruption . | . . . Corruption Purged . | . . . Corruption Blocked . | . . . Overload Shots . | . . . Overflow Damage 5 | . 5 . Projectiles 5 | . 5 . Explosions . | . . . Melee . | . . . Knockbacks 1 | . 1 . Impact 1 | . 1 . Kinetic . | . . . Secondary . | . . . Self-Inflicted Damage . | . . . Shots . | . . . Rammed 3 | . 3 . Targets Rammed 4 | . 4 . Kicked . | . . . Crushed 1 | . 1 . Highest Temperature 348 | 170 348 309 Average Temperature 69 | 67 75 49 Received Heat Transfer 657 | . 213 444 Effects 1 | . 1 . Damage (minor) 1 | . 1 . Siege Activations . | . . . Martial Activations . | . . . Shielding Activations . | . . . Robots Disrupted . | . . . Combat Hostiles . | . . . Robots Corrupted . | . . . Combat Hostiles . | . . . Parts Fried 1 | . 1 . Impact Corruptions . | . . . Robots Melted 1 | 1 . . Combat Hostiles . | . . . Parts Melted 8 | 3 3 2 Heat Transferred 3626 | 814 1702 1110 Parts Sabotaged . | . . . Parts Stolen . | . . . Parts Stripped . | . . . Power Chain Reactions . | . . . Alert | -11 -10 -10 ------- Run | Yrd Mat Sub Maximum Alert Level . | . . . Low Security (%) 100 | 100 100 . Level 1 . | . . . Level 2 . | . . . Level 3 . | . . . Level 4 . | . . . Level 5 . | . . . High Security . | . . . Max Security . | . . . Peak Influence 158 | 10 158 . Initial . | . . . Average 39 | 1 44 . Influence Increases 518 | 30 488 . Destroy 0b10 Robot/C 300 | . 300 . Destroy 0b10 Robot/NC 70 | 30 40 . Destroy Leader 76 | . 76 . Successful Hack 68 | . 68 . Destroy Structure 4 | . 4 . Influence Decreases 518 | 30 488 . Time Decay 400 | 30 370 . Lost Part 10 | . 10 . Purge Threat 108 | . 108 . Squads Dispatched 4 | . 4 . Investigation 2 | . 2 . Extermination . | . . . Reinforcement 2 | . 2 . Assault . | . . . Garrison . | . . . Intercept . | . . . Searches Triggered . | . . . Construction Impeded . | . . . Haulers Reinforced . | . . . Active Scanning Responses . | . . . Cargo Convoy Interrupts . | . . . Stealth | -11 -10 -10 --------- Run | Yrd Mat Sub Distress Signals 2 | . 2 . Communications Jammed . | . . . Distress Signals . | . . . Times Spotted 35 | . 27 8 Peak Tracking Total 4 | . 4 4 Tactical Retreats . | . . . Traps | -11 -10 -10 ------- Run | Yrd Mat Sub Traps Triggered 4 | . 4 . Indirectly . | . . . Trap Hack Attempts . | . . . Triggered . | . . . Disarmed . | . . . Reprogrammed . | . . . Reused . | . . . Traps Extracted . | . . . Installed . | . . . Triggered . | . . . Machines | -11 -10 -10 ---------- Run | Yrd Mat Sub Machines Disabled . | . . . Max in Single Turn . | . . . Machines Repaired . | . . . Machines Dismantled . | . . . Machines Sabotaged . | . . . Overloaded Fab Kills . | . . . Hacking | -11 -10 -10 --------- Run | Yrd Mat Sub Machines Accessed 9 | . 9 . Terminals 6 | . 6 . Fabricators . | . . . Repair Stations 1 | . 1 . Recycling Units 2 | . 2 . Scanalyzers . | . . . Garrison Access . | . . . Total Hacks 40 | . 40 . Successful 25 | . 25 . Failed 15 | . 15 . Catastrophic . | . . . Database Lockouts . | . . . Manual 27 | . 27 . Terminals 31 | . 31 . Fabricators . | . . . Repair Stations 4 | . 4 . Recycling Units 5 | . 5 . Scanalyzers . | . . . Garrison Access . | . . . Terminal Hacks 9 | . 9 . Robot Analysis 2 | . 2 . Prototype ID Bank 1 | . 1 . Terminal Index 1 | . 1 . Unreport Threat 1 | . 1 . Locate Traps 1 | . 1 . Dispatch Records 1 | . 1 . Recall Reinforcements 1 | . 1 . Hauler Manifests 1 | . 1 . Fabricator Hacks . | . . . Repair Station Hacks 4 | . 4 . Scan Component 2 | . 2 . Repair 2 | . 2 . Recycling Unit Hacks 2 | . 2 . Retrieve Components 2 | . 2 . Scanalyzer . | . . . Garrison Access Hacks . | . . . Unauthorized Hacks 10 | . 10 . Terminals 8 | . 8 . Botnet 2 | . 2 . Skim 6 | . 6 . Fabricators . | . . . Repair Stations . | . . . Recycling Units 2 | . 2 . Reject 1 | . 1 . Recyclers 1 | . 1 . Scanalyzers . | . . . Garrison Access . | . . . Data Cores Recovered . | . . . Used . | . . . Hacking Detections 7 | . 7 . Full Trace Events 2 | . 2 . Feedback Events . | . . . Feedback Blocked . | . . . Robot Schematics Acquired . | . . . Robots Built . | . . . Authchips . | . . . Time . | . . . Total Robot Build Rating . | . . . Part Schematics Acquired . | . . . Parts Built . | . . . Authchips . | . . . Time . | . . . Total Part Build Rating . | . . . Part Studies Acquired . | . . . Parts Repaired 2 | . 2 . Time 26 | . 26 . Parts Recycled . | . . . Recycled Matter . | . . . Retrieved Matter . | . . . Retrieved Components 9 | . 9 . Parts Scanalyzed . | . . . Part Schematics Acquired . | . . . Parts Damaged . | . . . Bothacking | -11 -10 -10 ------------ Run | Yrd Mat Sub Used RIF Installer . | . . . Robots Hacked . | . . . Non-combat . | . . . Combat . | . . . Robot Hacks Applied . | . . . Relay Couplers Released . | . . . Fabnet Peak Effective % . | . . . Robots Rewired . | . . . Allies Hacked . | . . . Hacks Repelled . | . . . Allies | -11 -10 -10 -------- Run | Yrd Mat Sub Total Allies . | . . . Largest Group . | . . . Highest-Rated Group . | . . . Highest-Rated Ally . | . . . Total Orders . | . . . Ally Attacks . | . . . Total Damage . | . . . Kills . | . . . Allies Corrupted . | . . . Allies Melted . | . . . Intel | -11 -10 -10 ------- Run | Yrd Mat Sub Active Infowar (turns) 2707 | 70 1259 1378 Structural 59 | . . 59 Seismic 2648 | 70 1259 1319 Robot Analysis Total 2 | . 2 . Derelict Logs Recovered 1 | . . 1 Drone Launches . | . . . Drone Recoveries . | . . . Exploration | -11 -10 -10 ------------- Run | Yrd Mat Sub Turns Passed 3501 | 205 1743 1553 Spaces Moved 1852 | 86 873 893 Core 8 | 8 . . Treads 1216 | 78 873 265 Legs . | . . . Wheels 628 | . . 628 Hover . | . . . Flight . | . . . Fastest Speed 50 | 50 160 130 Average Speed 153 | 153 160 147 Slowest Speed 240 | 160 160 240 Overloaded Moves . | . . . Propulsion Burnouts . | . . . Robots Hopped . | . . . Potential Cave-ins . | . . . Cave-ins Triggered . | . . . Exploration Rate (%) 53 | 6 99 54 Regions Visited 2 Branch Regions 1 Pre-discovered Areas 2 | . 1 1 Known Exits Taken 1 | . 1 . Unknown Exits Taken 1 | 1 . . Scrap Searched . | . . . Spaces Dug 2 | . 2 . Terrain Destroyed 2 | . 2 . Melee 1 | . 1 . Projectile 1 | . 1 . AOE . | . . . Terrain Rammed . | . . . Walls Destroyed . | . . . Machines Disabled . | . . . Actions | -11 -10 -10 --------- Run | Yrd Mat Sub Total 2285 | 118 1106 1061 Wait 191 | . 95 96 Move 1850 | 85 872 893 Hop . | . . . Pick Up 37 | 4 22 11 Fast Attach 14 | 7 6 1 Attach 7 | . 5 2 Detach 6 | . 5 1 Swap 34 | 1 15 18 Drop 24 | . 15 9 Fire 114 | 21 63 30 Melee 4 | . 4 . Ram . | . . . Kick . | . . . Crush 4 | . 4 . Escape Stasis . | . . . Rewire . | . . . Trap . | . . . Miscellaneous . | . . . Route ------- -11/Scrapyard -10/Materials (discovered 6 exits: [*Mat x3] / [*Min x2] / *Sub) -10/Subcaves (discovered 2 exits: Mat x2) History --------- Turn | Location | Event 11 | -11/Scrapyard | Discovered new exit (range 14) 206 | -11/Scrapyard | Entered Materials 317 | -10/Materials | Build established: Mutant 484 | -10/Materials | Discovered new exit (range 13) 720 | -10/Materials | Repaired Lgt. Treads 735 | -10/Materials | Repaired Lgt. Treads 791 | -10/Materials | Discovered new exit (range 16) 967 | -10/Materials | Discovered new exit (range 6) 1182 | -10/Materials | Discovered new exit (range 5) 1396 | -10/Materials | Discovered new exit (range 9) 1492 | -10/Materials | Identified exit to Subcaves 1561 | -10/Materials | Learned 4 Subcaves zone layouts 1672 | -10/Materials | Learned location of 2 exits from Materials 1760 | -10/Materials | Learned location of 2 exits from Subcaves 1949 | -10/Materials | Entered Subcaves 1950 | -10/Subcaves | Approached by a straggling Scientist 1950 | -10/Subcaves | Identified exit to Materials 2317 | -10/Subcaves | A swath of the cavern ceiling suddenly collapsed 2459 | -10/Subcaves | A Subdweller sparked back to life 2484 | -10/Subcaves | Core integrity fell below 50% 2531 | -10/Subcaves | Core integrity fell below 20% 2564 | -10/Subcaves | Found Prototype Flight Unit 2694 | -10/Subcaves | Learned location of Storage (-7) 2987 | -10/Subcaves | A swath of the cavern ceiling suddenly collapsed 3480 | -10/Subcaves | Shifting Twisted Machinery released Piercing Trap 3502 | -10/Subcaves | Destroyed by DI-WPT(R) with Subdweller Laser Last Messages --------------- 02574_ Acquired Sub. Power Source. 02575_ Dropped Signal Interpreter. 02577_ Acquired Sub. Optics. 02580_ Acquired 10 matter. 02584_ Dropped Lgt. Assault Rifle. 02585_ Subatomizers dissect the Disposable Heat Sink. 02585_ Acquired Sub. Beam Cannon. 02671_ Subatomizers dissect the Disposable Heat Sink. 02694_ Acquired derelict log, extracted data. World map updated: -7/Storage. 02829_ Tech Extrapolator violently self-destructs. 02838_ Subatomizers dissect the Lgt. Ion Engine, destroying it. 02864_ Sub. Monowheel shoots sparks and powers down. A swath of the cavern ceiling suddenly collapses. 03139_ Acquired 11 matter. 03428_ F8-M2V(R) destroyed. 03434_ Dropped Broken Sub. Monowheel. 03434_ Acquired Sub. Monowheel. 03435_ Acquired 31 matter. Piercing Trap falls loose from the Twisted Machinery. Map ----- +----------------------------------------------------+ | | | ?????????????????????????????????????????????????? | | ?????????????????????????????????????????????????? | | ?????????????????????????????????????????????????? | | ?????????????????????????????????????????????????? | | ?????????????????????????????????????????????????? | | ?????????????????????????????????????????????????? | | ?????????????????????????????????????????????????? | | ?????????????????????????????????????????????????? | | ?????????????????????????????????????????????????? | | ?????????????????????????????????????????????????? | | ?????????????????????????????????????????????????? | | ?????????????????????????????????????????????????? | | ?????????????????????????????????????????????????? | | ?????????????????????????????????????????????????? | | ?###########???#####?#####???????????????????????? | | ## ##### ### #???????????????????????? | | # ## #???????""""?????????????? | | "#??????"""""?????????????? | | ##### "#####?# ?????????????? | | #???# ##""## #??????????????? | | #???# """ #???????????????? | | #???# ## ## """ #?????????????????? | | ##??# #######" "R"""#?????????????????? | | #### #?### ##????????????????? | | #### ##?# @ #????????????????? | | #??# #??## ### #???????????????? | | #??#### ##???##??? &"" #??????????????? | | ##?????#### #????????? # "##??????????????? | | #?????###?## ####?????? ##? "#??????????????? | | ##??#### #### ##?????? #??? ??????????????? | | #???# #?# ##????? ???? ?????????????? | | #????# ### #????? ????? ????????????? | | #?????# #????? #????? "???????????? | | ??????## ####??????##??????"???????????? | | ???????## ##?????????????????????????????? | | ??####??# ### #??????????????????????????????? | | ### ##?##??# #??????????????????????????????? | | #####?# #??????????????????????????????? | | ## ### ##??????????????????????????????? | | ### #???????????????????????????????? | | ## ### #???????????????????????????????? | | ?## #???????????????????????????????? | | ??# #???????????????????????????????? | | ??## #???????????????????????????????? | | ???# #???????????????????????????????? | | ???## ## ##???????????????????????????????? | | ????## #######????????????????????????????????? | | ?????### # #???????????????????????????????????? | | ??????# ##??????????????????????????????????? | +----------------------------------------------------+ Best States ------------- Heat Dissipation 35 Energy Generation 15 Energy Capacity 250 Matter Stores 300 Matter Capacity 300 Sight Range 16 Terrain Scan Density 10 Weapon Shielding 33 Evasion (%) 40 Targeting Accuracy 5 Recoil Reduction 2 Item Schematics ----------------- None Robot Schematics ------------------ None Fabricated ------------ Nothing Repaired ---------- Lgt. Treads | 25% | -10/Materials Lgt. Treads | 67% | -10/Materials Studied --------- None Alien Tech Used ----------------- None Achievements -------------- None Challenges ------------ None Game ------ Seed GaussPitchforkTrap Manual? 0 Play Time 00:38:03 Cumulative 175.4 hours Start 2025.10.26 @ 16:26:56 End 2025.10.26 @ 17:04:08 Sessions 1 Manual Loads 0 Difficulty Rogue Special Mode None Game No. 60 Rogue 60 Adventurer 0 Explorer 0 Win Type - Total 1 Types 1/0/0/0/0/0/0/0/0/0 Lore% 48 Gallery% 46 Achievement% 29 Wizard Run 0 Options --------- Layout 0 ASCII 1 Keyboard 1 Movement Arrows Keybinds 0 Fullscreen 1 Font 24/Smallcaps Map View 76x50 Zoom Use 0% Tactical HUD 1 Map Filters NONE Filters NONE Steam 1 RUN: cae54c3a-2a82-495f-891c-7e50e52a2e97